[Event "Titled Tuesday Blitz August 17 2021"]
[White "Sapunov, Evgeny"]
[Black "Sokolin, Leonid"]
[WhiteFideId "4126661"]
[BlackFideId "2009161"]
[WhiteElo "2470"]
[BlackElo "2394"]
[Result "1/2-1/2"]
[Round "07"]
[TimeControl "180+1"]
[Date "2021.08.17"]
[WhiteClock "0:00:16"]
[BlackClock "0:00:12"]

1. c4 {[%clk 0:03:00]}  e5 {[%clk 0:02:12]} 2. Nf3 {[%clk 0:02:59]}  e4 {[%clk 0:02:09]} 3. Nd4 {[%clk 0:02:59]}  d5 {[%clk 0:02:09]} 4. cxd5 {[%clk 0:02:59]}  Qxd5 {[%clk 0:02:10]} 5. e3 {[%clk 0:02:58]}  Nf6 {[%clk 0:02:07]} 6. Nc3 {[%clk 0:02:58]}  Qe5 {[%clk 0:02:07]} 7. d3 {[%clk 0:02:56]}  c5 {[%clk 0:02:06]} 8. Ndb5 {[%clk 0:02:38]}  a6 {[%clk 0:02:04]} 9. d4 {[%clk 0:02:36]}  Qe7 {[%clk 0:01:59]} 10. Na3 {[%clk 0:02:36]}  Nbd7 {[%clk 0:01:55]} 11. Be2 {[%clk 0:02:29]}  b5 {[%clk 0:01:55]} 12. Nc2 {[%clk 0:02:28]}  Bb7 {[%clk 0:01:52]} 13. O-O {[%clk 0:02:27]}  g6 {[%clk 0:01:50]} 14. b3 {[%clk 0:02:28]}  Bg7 {[%clk 0:01:47]} 15. Bb2 {[%clk 0:02:23]}  O-O {[%clk 0:01:45]} 16. Rc1 {[%clk 0:02:23]}  Rfd8 {[%clk 0:01:44]} 17. dxc5 {[%clk 0:02:17]}  Nxc5 {[%clk 0:01:42]} 18. Nd4 {[%clk 0:02:17]}  Rac8 {[%clk 0:01:35]} 19. h3 {[%clk 0:02:11]}  h5 {[%clk 0:01:33]} 20. Qd2 {[%clk 0:02:01]}  h4 {[%clk 0:01:28]} 21. Rfd1 {[%clk 0:02:01]}  Qe5 {[%clk 0:01:25]} 22. Bf1 {[%clk 0:01:35]}  Bf8 {[%clk 0:01:24]} 23. Nce2 {[%clk 0:01:23]}  Nd3 {[%clk 0:01:23]} 24. Rxc8 {[%clk 0:01:22]}  Rxc8 {[%clk 0:01:21]} 25. Ba1 {[%clk 0:01:23]}  Bd6 {[%clk 0:01:04]} 26. Nf3 {[%clk 0:01:23]}  Qd5 {[%clk 0:00:50]} 27. Nxh4 {[%clk 0:01:09]}  Nh5 {[%clk 0:00:50]} 28. g3 {[%clk 0:01:02]}  Qg5 {[%clk 0:00:47]} 29. Ng2 {[%clk 0:00:58]}  Be5 {[%clk 0:00:41]} 30. Nef4 {[%clk 0:00:49]}  Bxa1 {[%clk 0:00:37]} 31. Rxa1 {[%clk 0:00:46]}  Ne5 {[%clk 0:00:36]} 32. Be2 {[%clk 0:00:44]}  Nxg3 {[%clk 0:00:23]} 33. fxg3 {[%clk 0:00:23]}  Nf3+ {[%clk 0:00:20]} 34. Bxf3 {[%clk 0:00:22]}  exf3 {[%clk 0:00:20]} 35. Kh2 {[%clk 0:00:21]}  fxg2 {[%clk 0:00:20]} 36. Nxg2 {[%clk 0:00:20]}  Qe5 {[%clk 0:00:19]} 37. Rf1 {[%clk 0:00:19]}  Qe4 {[%clk 0:00:19]} 38. Rf2 {[%clk 0:00:19]}  b4 {[%clk 0:00:18]} 39. Qd4 {[%clk 0:00:19]}  Rc3 {[%clk 0:00:15]} 40. Qxe4 {[%clk 0:00:18]}  Bxe4 {[%clk 0:00:16]} 41. Re2 {[%clk 0:00:17]}  Bf3 {[%clk 0:00:14]} 42. Rd2 {[%clk 0:00:16]}  Bxg2 {[%clk 0:00:14]} 43. Kxg2 {[%clk 0:00:17]}  Rxe3 {[%clk 0:00:14]} 44. g4 {[%clk 0:00:16]}  Kg7 {[%clk 0:00:13]} 45. Rd4 {[%clk 0:00:16]}  a5 {[%clk 0:00:12]} 1/2-1/2


[Site "https://www.chess.com"]

[Event "Titled Tuesday Blitz August 17 2021"]
[White "Seul, Georg"]
[Black "Ivanov, Oleg"]
[WhiteFideId "4601653"]
[BlackFideId "4103114"]
[WhiteElo "2332"]
[BlackElo "2698"]
[Result "0-1"]
[Round "07"]
[TimeControl "180+1"]
[Date "2021.08.17"]
[WhiteClock "0:00:01"]
[BlackClock "0:00:11"]

1. e4 {[%clk 0:03:00]}  c5 {[%clk 0:02:59]} 2. Nf3 {[%clk 0:03:00]}  d6 {[%clk 0:02:59]} 3. Bc4 {[%clk 0:03:00]}  Nf6 {[%clk 0:02:57]} 4. d3 {[%clk 0:02:58]}  Nc6 {[%clk 0:02:56]} 5. O-O {[%clk 0:02:58]}  g6 {[%clk 0:02:55]} 6. h3 {[%clk 0:02:58]}  Bg7 {[%clk 0:02:55]} 7. Nc3 {[%clk 0:02:57]}  O-O {[%clk 0:02:51]} 8. a3 {[%clk 0:02:57]}  a6 {[%clk 0:02:50]} 9. Be3 {[%clk 0:02:57]}  b5 {[%clk 0:02:49]} 10. Ba2 {[%clk 0:02:57]}  Bb7 {[%clk 0:02:49]} 11. Qd2 {[%clk 0:02:56]}  Re8 {[%clk 0:02:41]} 12. Bh6 {[%clk 0:02:55]}  Nd4 {[%clk 0:02:34]} 13. Nxd4 {[%clk 0:02:53]}  cxd4 {[%clk 0:02:35]} 14. Ne2 {[%clk 0:02:53]}  e5 {[%clk 0:02:33]} 15. Bxg7 {[%clk 0:02:52]}  Kxg7 {[%clk 0:02:32]} 16. f4 {[%clk 0:02:52]}  d5 {[%clk 0:02:25]} 17. fxe5 {[%clk 0:02:49]}  Rxe5 {[%clk 0:02:25]} 18. Qf4 {[%clk 0:02:18]}  Qe7 {[%clk 0:02:20]} 19. Ng3 {[%clk 0:02:08]}  dxe4 {[%clk 0:02:15]} 20. dxe4 {[%clk 0:02:07]}  Bxe4 {[%clk 0:02:08]} 21. Rf2 {[%clk 0:01:31]}  Nd5 {[%clk 0:01:26]} 22. Qd2 {[%clk 0:01:25]}  Qc5 {[%clk 0:01:12]} 23. b4 {[%clk 0:01:04]}  Qc3 {[%clk 0:01:08]} 24. Nxe4 {[%clk 0:01:01]}  Qxa1+ {[%clk 0:01:00]} 25. Rf1 {[%clk 0:00:44]}  Qxa2 {[%clk 0:00:58]} 26. Qxd4 {[%clk 0:00:43]}  Re8 {[%clk 0:00:52]} 27. Nd6 {[%clk 0:00:37]}  f6 {[%clk 0:00:26]} 28. c4 {[%clk 0:00:13]}  bxc4 {[%clk 0:00:09]} 29. Nxe8+ {[%clk 0:00:12]}  Rxe8 {[%clk 0:00:10]} 30. Qxd5 {[%clk 0:00:12]}  Re7 {[%clk 0:00:08]} 31. Qd6 {[%clk 0:00:11]}  Rf7 {[%clk 0:00:08]} 32. Qxa6 {[%clk 0:00:09]}  c3 {[%clk 0:00:07]} 33. Qc6 {[%clk 0:00:04]}  Qd2 {[%clk 0:00:06]} 34. b5 {[%clk 0:00:04]}  c2 {[%clk 0:00:06]} 35. b6 {[%clk 0:00:04]}  Kh6 {[%clk 0:00:06]} 36. b7 {[%clk 0:00:03]}  Rxb7 {[%clk 0:00:06]} 37. Qxb7 {[%clk 0:00:03]}  c1=Q {[%clk 0:00:06]} 38. Rxc1 {[%clk 0:00:03]}  Qxc1+ {[%clk 0:00:07]} 39. Kh2 {[%clk 0:00:04]}  Qxa3 {[%clk 0:00:08]} 40. Qe4 {[%clk 0:00:03]}  Qd6+ {[%clk 0:00:07]} 41. Kh1 {[%clk 0:00:03]}  Qe5 {[%clk 0:00:08]} 42. Qh4+ {[%clk 0:00:02]}  Kg7 {[%clk 0:00:08]} 43. Qc4 {[%clk 0:00:03]}  Qe1+ {[%clk 0:00:08]} 44. Kh2 {[%clk 0:00:03]}  Qe7 {[%clk 0:00:09]} 45. Kh1 {[%clk 0:00:03]}  h5 {[%clk 0:00:09]} 46. Kh2 {[%clk 0:00:03]}  Qf7 {[%clk 0:00:10]} 47. Qe4 {[%clk 0:00:02]}  Qc7+ {[%clk 0:00:10]} 48. Kh1 {[%clk 0:00:02]}  Qe5 {[%clk 0:00:11]} 49. Qf3 {[%clk 0:00:02]}  Qe1+ {[%clk 0:00:11]} 50. Kh2 {[%clk 0:00:02]}  h4 {[%clk 0:00:11]} 51. Qg4 {[%clk 0:00:01]}  Qe5+ {[%clk 0:00:10]} 52. Kh1 {[%clk 0:00:01]}  Qa1+ {[%clk 0:00:11]} 53. Kh2 {[%clk 0:00:01]}  Qe5+ {[%clk 0:00:11]} 54. Kh1 {[%clk 0:00:01]}  g5 {[%clk 0:00:12]} 55. Qg3 {[%clk 0:00:01]}  hxg3 {[%clk 0:00:11]} 0-1


[Site "https://www.chess.com"]

[Event "Titled Tuesday Blitz August 17 2021"]
[White "Shishkov, Andrei"]
[Black "Perez Gormaz, Matias"]
[WhiteFideId "4500563"]
[BlackFideId "3406342"]
[WhiteElo "2322"]
[BlackElo "2352"]
[Result "0-1"]
[Round "07"]
[TimeControl "180+1"]
[Date "2021.08.18"]
[WhiteClock "0:00:41"]
[BlackClock "0:01:51"]

1. d4 {[%clk 0:03:00]}  d5 {[%clk 0:03:00]} 2. c4 {[%clk 0:03:00]}  e6 {[%clk 0:03:00]} 3. Nc3 {[%clk 0:03:00]}  Be7 {[%clk 0:02:59]} 4. cxd5 {[%clk 0:02:57]}  exd5 {[%clk 0:03:00]} 5. Bf4 {[%clk 0:02:56]}  Nf6 {[%clk 0:03:00]} 6. e3 {[%clk 0:02:56]}  Bf5 {[%clk 0:02:59]} 7. Qb3 {[%clk 0:02:55]}  b6 {[%clk 0:02:57]} 8. Nge2 {[%clk 0:02:42]}  O-O {[%clk 0:02:55]} 9. Ng3 {[%clk 0:02:42]}  Be6 {[%clk 0:02:56]} 10. Bd3 {[%clk 0:02:38]}  c5 {[%clk 0:02:55]} 11. dxc5 {[%clk 0:02:36]}  bxc5 {[%clk 0:02:56]} 12. Rd1 {[%clk 0:02:28]}  c4 {[%clk 0:02:48]} 13. Qb7 {[%clk 0:02:18]}  cxd3 {[%clk 0:02:21]} 14. Qxa8 {[%clk 0:02:16]}  Qb6 {[%clk 0:02:22]} 15. Nf5 {[%clk 0:01:04]}  Bxf5 {[%clk 0:02:16]} 16. Nxd5 {[%clk 0:01:04]}  Qa5+ {[%clk 0:02:10]} 17. Nc3 {[%clk 0:00:56]}  Be4 {[%clk 0:02:07]} 18. Qxb8 {[%clk 0:00:49]}  Rxb8 {[%clk 0:02:07]} 19. Bxb8 {[%clk 0:00:50]}  Bxg2 {[%clk 0:01:53]} 20. Rg1 {[%clk 0:00:46]}  Be4 {[%clk 0:01:53]} 21. f3 {[%clk 0:00:43]}  Bg6 {[%clk 0:01:51]} 22. e4 {[%clk 0:00:41]}  Qb6 {[%clk 0:01:51]} 0-1


[Site "https://www.chess.com"]

[Event "Titled Tuesday Blitz August 17 2021"]
[White "Siva Mahadevan"]
[Black "Fernandez Hernandez, Arturo A."]
[WhiteFideId "25043153"]
[BlackFideId "3509230"]
[WhiteElo "2203"]
[BlackElo "2400"]
[Result "1-0"]
[Round "07"]
[TimeControl "180+1"]
[Date "2021.08.17"]
[WhiteClock "0:00:07"]
[BlackClock "0:00:03"]

1. e4 {[%clk 0:03:00]}  e5 {[%clk 0:02:59]} 2. Nf3 {[%clk 0:03:00]}  Nc6 {[%clk 0:03:00]} 3. Bb5 {[%clk 0:03:00]}  a6 {[%clk 0:03:00]} 4. Ba4 {[%clk 0:03:00]}  g6 {[%clk 0:03:00]} 5. c3 {[%clk 0:03:00]}  Bg7 {[%clk 0:03:00]} 6. d4 {[%clk 0:03:01]}  exd4 {[%clk 0:03:00]} 7. cxd4 {[%clk 0:03:02]}  b5 {[%clk 0:02:59]} 8. Bb3 {[%clk 0:03:02]}  Nge7 {[%clk 0:02:58]} 9. d5 {[%clk 0:03:02]}  Na5 {[%clk 0:02:58]} 10. Bd2 {[%clk 0:03:03]}  Nxb3 {[%clk 0:02:57]} 11. Qxb3 {[%clk 0:03:04]}  c5 {[%clk 0:02:45]} 12. d6 {[%clk 0:02:52]}  Nc6 {[%clk 0:02:45]} 13. Bc3 {[%clk 0:02:51]}  c4 {[%clk 0:02:30]} 14. Qd1 {[%clk 0:02:46]}  O-O {[%clk 0:02:30]} 15. O-O {[%clk 0:02:46]}  Re8 {[%clk 0:02:23]} 16. Re1 {[%clk 0:02:41]}  Bb7 {[%clk 0:02:22]} 17. Bxg7 {[%clk 0:02:41]}  Kxg7 {[%clk 0:02:22]} 18. Nc3 {[%clk 0:02:41]}  Nb4 {[%clk 0:02:12]} 19. Qd4+ {[%clk 0:02:37]}  f6 {[%clk 0:01:53]} 20. Re2 {[%clk 0:02:28]}  Nd3 {[%clk 0:01:49]} 21. Rd1 {[%clk 0:02:10]}  Rc8 {[%clk 0:01:40]} 22. g3 {[%clk 0:02:01]}  Qa5 {[%clk 0:00:40]} 23. a3 {[%clk 0:01:30]}  Re6 {[%clk 0:00:37]} 24. Ne1 {[%clk 0:01:16]}  Rc6 {[%clk 0:00:29]} 25. Qa7 {[%clk 0:00:56]}  Nxe1 {[%clk 0:00:26]} 26. Qxb7 {[%clk 0:00:52]}  Nf3+ {[%clk 0:00:25]} 27. Kg2 {[%clk 0:00:51]}  Ne5 {[%clk 0:00:26]} 28. f4 {[%clk 0:00:52]}  Rb6 {[%clk 0:00:25]} 29. Qc7 {[%clk 0:00:49]}  Nf7 {[%clk 0:00:24]} 30. e5 {[%clk 0:00:44]}  fxe5 {[%clk 0:00:23]} 31. fxe5 {[%clk 0:00:44]}  b4 {[%clk 0:00:21]} 32. Qxd7 {[%clk 0:00:35]}  Rxe5 {[%clk 0:00:18]} 33. Rf2 {[%clk 0:00:30]}  Rf5 {[%clk 0:00:18]} 34. Rxf5 {[%clk 0:00:24]}  gxf5 {[%clk 0:00:19]} 35. axb4 {[%clk 0:00:18]}  Qxb4 {[%clk 0:00:19]} 36. Rd2 {[%clk 0:00:15]}  Rxd6 {[%clk 0:00:19]} 37. Rxd6 {[%clk 0:00:14]}  Qxd6 {[%clk 0:00:20]} 38. Qxf5 {[%clk 0:00:15]}  Qd2+ {[%clk 0:00:18]} 39. Qf2 {[%clk 0:00:15]}  Qc1 {[%clk 0:00:17]} 40. Ne4 {[%clk 0:00:14]}  Qb1 {[%clk 0:00:14]} 41. Qd4+ {[%clk 0:00:14]}  Kg8 {[%clk 0:00:12]} 42. Nf6+ {[%clk 0:00:14]}  Kf8 {[%clk 0:00:11]} 43. Nd7+ {[%clk 0:00:14]}  Ke7 {[%clk 0:00:10]} 44. Nc5 {[%clk 0:00:14]}  Qc2+ {[%clk 0:00:09]} 45. Kg1 {[%clk 0:00:14]}  Qc1+ {[%clk 0:00:09]} 46. Kf2 {[%clk 0:00:14]}  Qc2+ {[%clk 0:00:10]} 47. Kf3 {[%clk 0:00:14]}  Qf5+ {[%clk 0:00:10]} 48. Kg2 {[%clk 0:00:14]}  Qc2+ {[%clk 0:00:10]} 49. Kf3 {[%clk 0:00:11]}  Qf5+ {[%clk 0:00:10]} 50. Ke3 {[%clk 0:00:11]}  Nd6 {[%clk 0:00:10]} 51. g4 {[%clk 0:00:08]}  Qg5+ {[%clk 0:00:08]} 52. Ke2 {[%clk 0:00:09]}  Qc1 {[%clk 0:00:06]} 53. Qe5+ {[%clk 0:00:08]}  Kf7 {[%clk 0:00:06]} 54. Qxd6 {[%clk 0:00:08]}  Qc2+ {[%clk 0:00:06]} 55. Qd2 {[%clk 0:00:07]}  Qb1 {[%clk 0:00:04]} 56. Kf2 {[%clk 0:00:07]}  Kf6 {[%clk 0:00:03]} 57. Qc3+ {[%clk 0:00:05]}  Ke7 {[%clk 0:00:03]} 58. Qe5+ {[%clk 0:00:05]}  Kd8 {[%clk 0:00:02]} 59. Qd6+ {[%clk 0:00:06]}  Ke8 {[%clk 0:00:03]} 60. Qd7+ {[%clk 0:00:06]}  Kf8 {[%clk 0:00:03]} 61. Ne6+ {[%clk 0:00:07]} 1-0


[Site "https://www.chess.com"]

[Event "Titled Tuesday Blitz August 17 2021"]
[White "Sokolovsky, Yahli"]
[Black "Atabayev, Saparmyrat"]
[WhiteFideId "2820242"]
[BlackFideId "14000571"]
[WhiteElo "1770"]
[BlackElo "2483"]
[Result "0-1"]
[Round "07"]
[TimeControl "180+1"]
[Date "2021.08.17"]
[WhiteClock "0:00:01"]
[BlackClock "0:00:50"]

1. b3 {[%clk 0:03:00]}  e5 {[%clk 0:02:59]} 2. Bb2 {[%clk 0:03:00]}  Nc6 {[%clk 0:02:59]} 3. c4 {[%clk 0:03:01]}  f5 {[%clk 0:02:59]} 4. e3 {[%clk 0:02:57]}  Nf6 {[%clk 0:02:59]} 5. Nc3 {[%clk 0:02:53]}  Bb4 {[%clk 0:02:41]} 6. Nge2 {[%clk 0:02:46]}  O-O {[%clk 0:02:40]} 7. a3 {[%clk 0:02:46]}  Be7 {[%clk 0:02:39]} 8. d4 {[%clk 0:02:46]}  exd4 {[%clk 0:02:38]} 9. Nxd4 {[%clk 0:02:42]}  Nxd4 {[%clk 0:02:35]} 10. exd4 {[%clk 0:02:43]}  d5 {[%clk 0:02:27]} 11. cxd5 {[%clk 0:02:37]}  Bd6 {[%clk 0:02:25]} 12. Be2 {[%clk 0:02:28]}  Ne4 {[%clk 0:02:25]} 13. Nb5 {[%clk 0:02:09]}  Qh4 {[%clk 0:02:19]} 14. g3 {[%clk 0:01:36]}  Qh3 {[%clk 0:01:53]} 15. Bf1 {[%clk 0:01:18]}  Qh6 {[%clk 0:01:50]} 16. Bg2 {[%clk 0:01:12]}  Nxf2 {[%clk 0:01:37]} 17. Kxf2 {[%clk 0:01:08]}  f4 {[%clk 0:01:37]} 18. Bf3 {[%clk 0:00:56]}  Bg4 {[%clk 0:01:15]} 19. Bxg4 {[%clk 0:00:16]}  fxg3+ {[%clk 0:01:14]} 20. Kg2 {[%clk 0:00:14]}  Rf2+ {[%clk 0:01:12]} 21. Kg1 {[%clk 0:00:14]}  Qe3 {[%clk 0:01:00]} 22. Bc1 {[%clk 0:00:05]}  Rd2+ {[%clk 0:00:50]} 23. Kf1 {[%clk 0:00:01]}  Qf2# {[%clk 0:00:50]} 0-1


[Site "https://www.chess.com"]

[Event "Titled Tuesday Blitz August 17 2021"]
[White "Steinberg, Nitzan"]
[Black "Sarana, Alexey"]
[WhiteFideId "2801795"]
[BlackFideId "24133795"]
[WhiteElo "2440"]
[BlackElo "2646"]
[Result "0-1"]
[Round "07"]
[TimeControl "180+1"]
[Date "2021.08.17"]
[WhiteClock "0:00:17"]
[BlackClock "0:01:28"]

1. e4 {[%clk 0:02:39]}  e5 {[%clk 0:02:58]} 2. Nf3 {[%clk 0:02:39]}  Nc6 {[%clk 0:02:59]} 3. Bb5 {[%clk 0:02:39]}  a6 {[%clk 0:02:59]} 4. Ba4 {[%clk 0:02:40]}  Nf6 {[%clk 0:02:59]} 5. O-O {[%clk 0:02:40]}  Nxe4 {[%clk 0:02:59]} 6. d4 {[%clk 0:02:40]}  b5 {[%clk 0:02:59]} 7. Bb3 {[%clk 0:02:41]}  d5 {[%clk 0:02:59]} 8. dxe5 {[%clk 0:02:41]}  Be6 {[%clk 0:02:59]} 9. Nbd2 {[%clk 0:02:42]}  Nc5 {[%clk 0:02:57]} 10. c3 {[%clk 0:02:41]}  d4 {[%clk 0:02:58]} 11. Bxe6 {[%clk 0:02:38]}  Nxe6 {[%clk 0:02:58]} 12. cxd4 {[%clk 0:02:38]}  Ncxd4 {[%clk 0:02:56]} 13. a4 {[%clk 0:02:39]}  Bb4 {[%clk 0:02:54]} 14. Ne4 {[%clk 0:02:29]}  O-O {[%clk 0:02:44]} 15. axb5 {[%clk 0:02:17]}  axb5 {[%clk 0:02:40]} 16. Rxa8 {[%clk 0:02:08]}  Qxa8 {[%clk 0:02:41]} 17. Neg5 {[%clk 0:02:01]}  Nxf3+ {[%clk 0:02:34]} 18. Nxf3 {[%clk 0:02:00]}  c5 {[%clk 0:02:35]} 19. Qd7 {[%clk 0:01:52]}  Qe8 {[%clk 0:02:24]} 20. Qb7 {[%clk 0:01:51]}  Qb8 {[%clk 0:02:23]} 21. Qe4 {[%clk 0:01:41]}  Qa8 {[%clk 0:02:15]} 22. Qg4 {[%clk 0:01:41]}  c4 {[%clk 0:02:12]} 23. h4 {[%clk 0:01:29]}  Qd5 {[%clk 0:02:05]} 24. h5 {[%clk 0:01:23]}  Be7 {[%clk 0:01:58]} 25. Be3 {[%clk 0:01:15]}  b4 {[%clk 0:01:52]} 26. Nd2 {[%clk 0:01:02]}  c3 {[%clk 0:01:51]} 27. bxc3 {[%clk 0:01:03]}  bxc3 {[%clk 0:01:52]} 28. Nf3 {[%clk 0:00:55]}  c2 {[%clk 0:01:50]} 29. Rc1 {[%clk 0:00:52]}  Rc8 {[%clk 0:01:49]} 30. h6 {[%clk 0:00:51]}  Rc4 {[%clk 0:01:39]} 31. Qh3 {[%clk 0:00:31]}  g6 {[%clk 0:01:37]} 32. Ne1 {[%clk 0:00:23]}  Ba3 {[%clk 0:01:33]} 33. Rxc2 {[%clk 0:00:18]}  Rxc2 {[%clk 0:01:32]} 34. Nxc2 {[%clk 0:00:18]}  Qd1+ {[%clk 0:01:32]} 35. Kh2 {[%clk 0:00:19]}  Qxc2 {[%clk 0:01:33]} 36. Qf3 {[%clk 0:00:20]}  Bf8 {[%clk 0:01:29]} 37. Qd5 {[%clk 0:00:18]}  Qf5 {[%clk 0:01:29]} 38. g3 {[%clk 0:00:17]}  Qh5+ {[%clk 0:01:28]} 39. Kg2 {[%clk 0:00:17]}  Bxh6 {[%clk 0:01:28]} 0-1


[Site "https://www.chess.com"]

[Event "Titled Tuesday Blitz August 17 2021"]
[White "Stoyanov, Tsvetan"]
[Black "Mirzoev, Azer"]
[WhiteFideId "2917173"]
[BlackFideId "13400304"]
[WhiteElo "2191"]
[BlackElo "2525"]
[Result "1-0"]
[Round "07"]
[TimeControl "180+1"]
[Date "2021.08.17"]
[WhiteClock "0:00:03"]
[BlackClock "0:00:01"]

1. e4 {[%clk 0:03:00]}  c6 {[%clk 0:02:59]} 2. d4 {[%clk 0:03:00]}  d5 {[%clk 0:03:00]} 3. Nc3 {[%clk 0:03:00]}  dxe4 {[%clk 0:03:00]} 4. Nxe4 {[%clk 0:03:01]}  Bf5 {[%clk 0:03:00]} 5. Ng3 {[%clk 0:03:01]}  Bg6 {[%clk 0:02:59]} 6. h4 {[%clk 0:03:00]}  h6 {[%clk 0:02:56]} 7. Nf3 {[%clk 0:03:01]}  e6 {[%clk 0:02:52]} 8. Ne5 {[%clk 0:03:00]}  Bh7 {[%clk 0:02:52]} 9. c3 {[%clk 0:02:53]}  Nf6 {[%clk 0:02:46]} 10. Bc4 {[%clk 0:02:49]}  Nbd7 {[%clk 0:02:42]} 11. Qe2 {[%clk 0:02:37]}  Nxe5 {[%clk 0:02:35]} 12. dxe5 {[%clk 0:02:35]}  Nd5 {[%clk 0:02:34]} 13. Ne4 {[%clk 0:02:22]}  Qc7 {[%clk 0:02:31]} 14. f4 {[%clk 0:02:07]}  O-O-O {[%clk 0:02:30]} 15. Bd2 {[%clk 0:02:02]}  Be7 {[%clk 0:02:18]} 16. O-O-O {[%clk 0:01:59]}  Kb8 {[%clk 0:02:17]} 17. Bd3 {[%clk 0:01:48]}  c5 {[%clk 0:02:11]} 18. c4 {[%clk 0:01:26]}  Nb4 {[%clk 0:02:10]} 19. Bxb4 {[%clk 0:01:26]}  cxb4 {[%clk 0:02:10]} 20. Bc2 {[%clk 0:01:00]}  Rxd1+ {[%clk 0:01:55]} 21. Rxd1 {[%clk 0:01:01]}  Bxh4 {[%clk 0:01:54]} 22. Nd6 {[%clk 0:01:00]}  Bxc2 {[%clk 0:01:42]} 23. Kxc2 {[%clk 0:01:00]}  g5 {[%clk 0:01:41]} 24. Rh1 {[%clk 0:00:39]}  Rd8 {[%clk 0:01:23]} 25. Kb3 {[%clk 0:00:35]}  Bg3 {[%clk 0:01:15]} 26. fxg5 {[%clk 0:00:24]}  hxg5 {[%clk 0:01:15]} 27. Rh7 {[%clk 0:00:23]}  Bxe5 {[%clk 0:01:10]} 28. Nxf7 {[%clk 0:00:23]}  Bf4 {[%clk 0:00:34]} 29. Nxd8 {[%clk 0:00:18]}  Qxh7 {[%clk 0:00:32]} 30. Nxe6 {[%clk 0:00:17]}  Bd6 {[%clk 0:00:12]} 31. Nxg5 {[%clk 0:00:14]}  Qg8 {[%clk 0:00:09]} 32. Ne4 {[%clk 0:00:13]}  Be7 {[%clk 0:00:08]} 33. g4 {[%clk 0:00:09]}  a5 {[%clk 0:00:08]} 34. Ng3 {[%clk 0:00:05]}  Qd8 {[%clk 0:00:06]} 35. Nf5 {[%clk 0:00:05]}  Bf6 {[%clk 0:00:05]} 36. Qe4 {[%clk 0:00:02]}  Ka7 {[%clk 0:00:05]} 37. Ka4 {[%clk 0:00:02]}  b6 {[%clk 0:00:04]} 38. Qc6 {[%clk 0:00:02]}  Bxb2 {[%clk 0:00:03]} 39. Nd6 {[%clk 0:00:02]}  Qb8 {[%clk 0:00:01]} 40. Qd7+ {[%clk 0:00:03]} 1-0


[Site "https://www.chess.com"]

[Event "Titled Tuesday Blitz August 17 2021"]
[White "Tania, Sachdev"]
[Black "Costachi, Mihnea"]
[WhiteFideId "5007844"]
[BlackFideId "1217518"]
[WhiteElo "2280"]
[BlackElo "2482"]
[Result "0-1"]
[Round "07"]
[TimeControl "180+1"]
[Date "2021.08.17"]
[WhiteClock "0:00:19"]
[BlackClock "0:02:09"]

1. d4 {[%clk 0:03:00]}  Nf6 {[%clk 0:02:59]} 2. c4 {[%clk 0:03:00]}  g6 {[%clk 0:03:00]} 3. Nc3 {[%clk 0:02:59]}  Bg7 {[%clk 0:03:01]} 4. e4 {[%clk 0:03:00]}  O-O {[%clk 0:03:02]} 5. f3 {[%clk 0:03:01]}  d6 {[%clk 0:03:02]} 6. Nge2 {[%clk 0:03:01]}  c5 {[%clk 0:03:03]} 7. d5 {[%clk 0:03:02]}  e6 {[%clk 0:03:01]} 8. Ng3 {[%clk 0:03:02]}  exd5 {[%clk 0:03:01]} 9. cxd5 {[%clk 0:03:03]}  h5 {[%clk 0:03:01]} 10. Bg5 {[%clk 0:03:02]}  a6 {[%clk 0:03:02]} 11. a4 {[%clk 0:03:01]}  Qa5 {[%clk 0:03:02]} 12. Qd2 {[%clk 0:02:58]}  b5 {[%clk 0:02:59]} 13. Be2 {[%clk 0:02:52]}  b4 {[%clk 0:02:55]} 14. Nd1 {[%clk 0:02:48]}  Nh7 {[%clk 0:02:53]} 15. O-O {[%clk 0:02:47]}  Nxg5 {[%clk 0:02:51]} 16. Qxg5 {[%clk 0:02:47]}  Qd8 {[%clk 0:02:52]} 17. Qd2 {[%clk 0:02:38]}  h4 {[%clk 0:02:51]} 18. Nh1 {[%clk 0:02:38]}  h3 {[%clk 0:02:51]} 19. g3 {[%clk 0:02:35]}  a5 {[%clk 0:02:51]} 20. Nhf2 {[%clk 0:02:32]}  Qf6 {[%clk 0:02:46]} 21. g4 {[%clk 0:02:28]}  Nd7 {[%clk 0:02:42]} 22. Nxh3 {[%clk 0:02:26]}  Qh4 {[%clk 0:02:42]} 23. Kg2 {[%clk 0:02:23]}  Bf6 {[%clk 0:02:33]} 24. Ndf2 {[%clk 0:01:46]}  Kg7 {[%clk 0:02:30]} 25. f4 {[%clk 0:01:46]}  Rh8 {[%clk 0:02:29]} 26. Rab1 {[%clk 0:01:24]}  Bd4 {[%clk 0:02:25]} 27. Qd3 {[%clk 0:01:24]}  Ba6 {[%clk 0:02:21]} 28. Qf3 {[%clk 0:01:05]}  Bxe2 {[%clk 0:02:17]} 29. Qxe2 {[%clk 0:01:04]}  Bxf2 {[%clk 0:02:17]} 30. Rxf2 {[%clk 0:01:05]}  Qxh3+ {[%clk 0:02:17]} 31. Kg1 {[%clk 0:01:06]}  Rae8 {[%clk 0:02:12]} 32. Re1 {[%clk 0:01:01]}  Nf6 {[%clk 0:02:11]} 33. e5 {[%clk 0:00:48]}  Qxg4+ {[%clk 0:02:10]} 34. Qxg4 {[%clk 0:00:44]}  Nxg4 {[%clk 0:02:11]} 35. Rg2 {[%clk 0:00:44]}  Rh4 {[%clk 0:02:11]} 36. e6 {[%clk 0:00:21]}  fxe6 {[%clk 0:02:10]} 37. dxe6 {[%clk 0:00:21]}  Kf6 {[%clk 0:02:10]} 38. Rge2 {[%clk 0:00:19]}  Nh6 {[%clk 0:02:09]} 0-1


[Site "https://www.chess.com"]

[Event "Titled Tuesday Blitz August 17 2021"]
[White "TengisChess"]
[Black "Rustemov, Alexander"]
[BlackFideId "4119002"]
[WhiteElo "2468"]
[BlackElo "2688"]
[Result "0-1"]
[Round "07"]
[TimeControl "180+1"]
[Date "2021.08.17"]
[WhiteClock "0:00:07"]
[BlackClock "0:00:44"]

1. Nf3 {[%clk 0:03:00]}  d5 {[%clk 0:02:59]} 2. g3 {[%clk 0:02:59]}  Nf6 {[%clk 0:02:58]} 3. Bg2 {[%clk 0:03:00]}  c6 {[%clk 0:02:59]} 4. O-O {[%clk 0:03:00]}  Bf5 {[%clk 0:03:00]} 5. b3 {[%clk 0:02:59]}  e6 {[%clk 0:03:00]} 6. Bb2 {[%clk 0:03:00]}  h6 {[%clk 0:02:59]} 7. d3 {[%clk 0:03:01]}  Be7 {[%clk 0:02:58]} 8. Nbd2 {[%clk 0:03:01]}  a5 {[%clk 0:02:57]} 9. a4 {[%clk 0:03:02]}  O-O {[%clk 0:02:55]} 10. Re1 {[%clk 0:03:02]}  Na6 {[%clk 0:02:54]} 11. e4 {[%clk 0:02:55]}  Bh7 {[%clk 0:02:53]} 12. Qe2 {[%clk 0:02:45]}  Nb4 {[%clk 0:02:52]} 13. Rac1 {[%clk 0:02:43]}  Qc7 {[%clk 0:02:49]} 14. h3 {[%clk 0:02:41]}  Rfd8 {[%clk 0:02:48]} 15. Nh2 {[%clk 0:02:41]}  Na2 {[%clk 0:02:35]} 16. Ra1 {[%clk 0:02:38]}  Nb4 {[%clk 0:02:34]} 17. Rac1 {[%clk 0:02:38]}  b5 {[%clk 0:02:32]} 18. Ng4 {[%clk 0:02:36]}  Nxg4 {[%clk 0:02:29]} 19. Qxg4 {[%clk 0:02:37]}  Bf8 {[%clk 0:02:27]} 20. exd5 {[%clk 0:02:30]}  Nxd5 {[%clk 0:02:08]} 21. Nb1 {[%clk 0:00:56]}  Rac8 {[%clk 0:01:45]} 22. Nc3 {[%clk 0:00:52]}  Qb6 {[%clk 0:01:28]} 23. Nxd5 {[%clk 0:00:44]}  cxd5 {[%clk 0:01:26]} 24. axb5 {[%clk 0:00:43]}  Qxb5 {[%clk 0:01:26]} 25. Qe2 {[%clk 0:00:32]}  a4 {[%clk 0:01:21]} 26. c4 {[%clk 0:00:26]}  Qxb3 {[%clk 0:01:19]} 27. cxd5 {[%clk 0:00:26]}  Rxc1 {[%clk 0:01:08]} 28. Rxc1 {[%clk 0:00:25]}  exd5 {[%clk 0:01:04]} 29. d4 {[%clk 0:00:14]}  a3 {[%clk 0:01:02]} 30. Ba1 {[%clk 0:00:14]}  a2 {[%clk 0:01:01]} 31. Qa6 {[%clk 0:00:14]}  Qb1 {[%clk 0:00:58]} 32. Qf1 {[%clk 0:00:12]}  Rb8 {[%clk 0:00:49]} 33. Bxd5 {[%clk 0:00:11]}  Qxc1 {[%clk 0:00:48]} 34. Qxc1 {[%clk 0:00:10]}  Rb1 {[%clk 0:00:49]} 35. Qf1 {[%clk 0:00:09]}  Bd3 {[%clk 0:00:45]} 36. Bxa2 {[%clk 0:00:07]}  Rxf1+ {[%clk 0:00:44]} 0-1


[Site "https://www.chess.com"]